[Event "DPEM German Cup 2022"]
[Site "Magdeburg"]
[Date "2022.08.18"]
[Round "1.8"]
[White "Uphoff, Lennart"]
[Black "Koehne, Arno"]
[Result "1-0"]
[ECO "D36"]
[WhiteElo "2173"]
[BlackElo "2011"]
[Annotator "TA"]
[PlyCount "75"]
[EventDate "2022.08.10"]
[EventType "k.o."]
[EventCountry "GER"]
[SourceTitle "playchess.com"]
[Source "ChessBase"]
[SourceQuality "1"]
[TimeControl "40/5400+30:900+30"]

{[%evp 22,75,30,37,42,33,43,26,37,17,166,162,198,168,212,200,267,266,270,191,268,177,251,252,255,250,267,271,281,264,289,271,387,382,384,388,381,380,459,436,875,868,1348,977,2113,926,29984,1114,29987,29988,29988,1451,29995,29988,29996,29994]} 1. d4 {[%emt 0:00:03]} d5 {[%emt 0:00:17]} 2. c4 {[%emt 0:00:06]} e6 {[%emt 0:00:29]} 3. Nc3 {[%emt 0:00:06]} Nf6 {[%emt 0:02:50]} 4. cxd5 {[%emt 0:00:08]} exd5 {[%emt 0:00:54]} 5. Bg5 {[%emt 0:00:10]} Be7 {[%emt 0:01:19]} 6. e3 {[%emt 0:00:10]} O-O {[%emt 0:00:30]} 7. Bd3 {[%emt 0:00:41]} h6 {[%emt 0:00:46]} 8. Bh4 {[%emt 0:00:30]} c6 {[%emt 0:06:09]} 9. Qc2 {[%emt 0:00:56]} Re8 {[%emt 0:09:37]} 10. Nge2 {[%emt 0:00:23]} Nbd7 {[%emt 0:04:27]} 11. O-O {[%emt 0:01:41]} Nf8 {[%emt 0:05:03]} 12. f3 {[%emt 0:02:50][%cal Bf2f3,Bf3f4,Bf4f5][%mdl 32]} N6h7 {[%emt 0:11:14] D36: Queen's Gambit Declined: Exchange Variation: Main line (5 Bg5 c6 6 Qc2).} 13. Bf2 {[%emt 0:09:05]} Bh4 {[%emt 0:04:47]} 14. e4 {[%emt 0:27:03][%cal Be3e4,Be4e5][%mdl 32]} Bxf2+ {[%emt 0:01:40] White has an edge.} 15. Rxf2 {[%emt 0:00:54] Black should prevent e5.} Nf6 {[%emt 0:12:21]} (15... dxe4 $1 $11 {and Black has nothing to worry.} 16. fxe4 (16. Nxe4 Nf6 $11) 16... Re7) 16. e5 $18 {[%emt 0:02:44]} N6d7 {[%emt 0:03:51]} 17. f4 {[%emt 0:00:53] [#]} f6 $146 {[%emt 0:03:02]} ({Predecessor:} 17... a6 18. f5 Qg5 19. f6 gxf6 20. Rf3 Kh8 21. Rg3 Qxg3 22. Nxg3 fxe5 23. Qd2 e4 24. Qxh6+ Nh7 25. Ncxe4 Re6 26. Nf6 Ndxf6 27. Nh5 {1-0 (27) Lerida Macareno,C (2107)-Lucena Cifre,R (1600) ICCF email 2018}) 18. Raf1 {[%emt 0:05:38]} Qe7 {[%emt 0:02:21]} 19. Ng3 {[%emt 0:07:24]} Nb6 {[%emt 0:01:21]} 20. h3 {[%emt 0:13:24]} Kh8 {[%emt 0:12:00]} (20... Bd7 $142 21. Qe2 Rad8) 21. a3 {[%emt 0:18:47]} Be6 {[%emt 0:05:35]} (21... fxe5 $142 22. fxe5 Be6) 22. f5 {[%emt 0:01:23]} Bg8 {[%emt 0:00:44]} 23. e6 {[%emt 0:03:56]} Qd6 {[%emt 0:02:01]} 24. Nce2 {[%emt 0:00:44]} Rac8 {[%emt 0:00:53]} 25. b4 {[%emt 0:00:16]} Rc7 {[%emt 0:02:01]} 26. Nh5 {[%emt 0:01:39]} Qe7 {[%emt 0:03:22]} (26... Bh7 $142 27. Qc3 Na4) 27. Rf3 {[%emt 0:00:53]} Qd8 {[%emt 0:00:55]} 28. Rg3 {[%emt 0:00:15]} Nc8 {[%emt 0:01:02]} 29. Rf4 {[%emt 0:00:35]} Ree7 {[%emt 0:02:38]} 30. Rfg4 {[%emt 0:00:08]} Nh7 {[%emt 0:00:20]} (30... Nd6 $142 31. Nxf6 Bxe6 32. fxe6 Rxe6) 31. Nef4 {[%emt 0:00:14][%cal Rf4g6] [#]} Ng5 {[%emt 0:00:12]} 32. h4 {[%emt 0:00:38]} Ne4 {[%emt 0:00:02]} 33. Bxe4 {[%emt 0:00:24]} (33. Ng6+ $142 Kh7 34. Nxe7 Qxe7 35. Bxe4) 33... dxe4 {[%emt 0:00:00]} 34. Qxe4 {[%emt 0:01:03]} (34. Ng6+ $142 Kh7 35. Qxe4 Re8 36. Qe3 Rxe6 37. fxe6 f5 38. e7 Rxe7 39. Nxe7) 34... Nd6 {[%emt 0:00:41]} 35. Ng6+ {[%emt 0:00:34]} Kh7 {[%emt 0:00:20] [#]} 36. Qf4 {[%emt 0:00:39]} (36. Nxe7 $142 $1 Rxe7 (36... Qxe7 37. Rxg7+) 37. Rxg7+ Rxg7 38. Rxg7+ Kh8 39. Qf4 Nxf5 40. Rd7 Qf8 41. Qxf5) 36... Re8 {[%emt 0:00:19]} 37. e7 {[%emt 0:00:28]} Qc8 {[%emt 0:01:58]} 38. Qxd6 {[%emt 0:00:17] Black did not feel at home in the position after the opening.  Weighted Error Value: White=0.16 (very precise) /Black=1.06} 1-0

[Event "DPEM German Cup 2022"]
[Site "Magdeburg"]
[Date "2022.08.18"]
[Round "2.1"]
[White "Malinowsky, Levi"]
[Black "Kist, Eike Andreas"]
[Result "1/2-1/2"]
[ECO "B53"]
[WhiteElo "1814"]
[BlackElo "1697"]
[Annotator "NA RC"]
[PlyCount "80"]
[EventDate "2022.08.10"]
[EventType "k.o."]
[EventCountry "GER"]
[SourceTitle "playchess.com"]
[Source "ChessBase"]
[SourceQuality "1"]
[TimeControl "40/5400+30:900+30"]

1. e4 {[%emt 0:00:04]} c5 {[%emt 0:00:04]} 2. Nf3 {[%emt 0:00:13]} d6 {[%emt 0:00:06]} 3. d4 {[%emt 0:00:29]} cxd4 {[%emt 0:00:07]} 4. Qxd4 {[%emt 0:00:25]} Nc6 {[%emt 0:00:11]} 5. Qe3 {[%emt 0:00:26]} Nf6 {[%emt 0:11:34]} 6. c4 {[%emt 0:01:31]} Ng4 {[%emt 0:01:22]} 7. Qd2 {[%emt 0:03:01]} g6 {[%emt 0:12:38]} 8. h3 {[%emt 0:03:03]} Nf6 {[%emt 0:02:14]} 9. Nc3 {[%emt 0:00:23]} Bg7 {[%emt 0:01:00]} 10. Be2 {[%emt 0:01:52]} O-O {[%emt 0:00:55]} 11. O-O {[%emt 0:03:28]} Qc7 {[%emt 0:04:54]} 12. Rb1 {[%emt 0:03:30]} Rd8 {[%emt 0:04:31]} 13. b3 {[%emt 0:03:52]} e6 {[%emt 0:02:05]} 14. Rd1 {[%emt 0:03:27]} d5 {[%emt 0:07:12]} 15. Qc2 {[%emt 0:22:48]} dxe4 {[%emt 0:03:46]} 16. Rxd8+ {[%emt 0:02:27]} Qxd8 {[%emt 0:00:12]} 17. Nxe4 {[%emt 0:07:03]} Nxe4 {[%emt 0:06:26]} 18. Qxe4 {[%emt 0:00:09]} e5 {[%emt 0:00:10]} 19. Rb2 {[%emt 0:06:12]} Qe7 {[%emt 0:04:28]} 20. Rd2 {[%emt 0:03:42]} Bh6 {[%emt 0:03:10]} 21. Rd1 {[%emt 0:01:29]} Bf5 {[%emt 0:01:17]} 22. Qh4 {[%emt 0:01:35]} Bxc1 {[%emt 0:03:33]} 23. Qxe7 {[%emt 0:00:52]} Nxe7 {[%emt 0:00:07]} 24. Rxc1 {[%emt 0:00:09]} Nc6 {[%emt 0:01:57]} 25. g4 {[%emt 0:03:36]} Be6 {[%emt 0:04:33]} 26. Rd1 {[%emt 0:04:49]} f6 {[%emt 0:01:42]} 27. Nd2 {[%emt 0:01:26]} Kf7 {[%emt 0:02:05]} 28. Bf3 {[%emt 0:03:22]} Rd8 {[%emt 0:01:31]} 29. Ne4 {[%emt 0:01:32]} Nd4 {[%emt 0:01:19]} 30. Kg2 {[%emt 0:01:10]} b6 {[%emt 0:00:50]} 31. Nc3 {[%emt 0:01:23]} Ke7 {[%emt 0:01:32]} 32. Bd5 {[%emt 0:01:42]} Bxd5+ {[%emt 0:08:14]} 33. Nxd5+ {[%emt 0:00:48]} Ke6 {[%emt 0:00:30]} 34. Nc7+ {[%emt 0:00:30]} Ke7 {[%emt 0:00:30]} 35. Nd5+ {[%emt 0:00:30]} Ke6 {[%emt 0:00:30]} 36. Nc7+ {[%emt 0:00:30]} Ke7 {[%emt 0:00:30]} 37. Nd5+ {[%emt 0:00:30]} Ke6 {[%emt 0:00:30]} 38. Nc7+ {[%emt 0:00:30]} Ke7 {[%emt 0:00:34]} 39. Nd5+ {[%emt 0:00:30]} Ke6 {[%emt 0:00:34]} 40. Nc7+ {[%emt 0:00:30]} Ke7 {[%emt 0:00:30]} 1/2-1/2

[Event "DPEM German Cup 2022"]
[Site "Magdeburg"]
[Date "2022.08.18"]
[Round "2.2"]
[White "Chassard, Cedric"]
[Black "Puerckhauer, Soeren"]
[Result "0-1"]
[ECO "B01"]
[WhiteElo "2010"]
[BlackElo "2158"]
[Annotator "TA"]
[PlyCount "124"]
[EventDate "2022.08.10"]
[EventType "k.o."]
[EventCountry "GER"]
[SourceTitle "playchess.com"]
[Source "ChessBase"]
[SourceQuality "1"]
[TimeControl "40/5400+30:900+30"]

{[%evp 9,124,62,54,31,58,53,57,34,58,37,37,30,42,38,30,29,26,27,28,29,28,21,37,15,23,7,6,7,7,0,0,0,7,0,0,0,0,0,0,0,0,0,0,0,21,0,0,0,0,-11,5,0,0,0,0,0,0,0,0,-31,-45,-43,-39,-71,0,-8,-6,-8,-8,-8,-8,-11,0,-79,-68,-87,-209,-77,-9,-19,-19,-966,-956,-917,-893,-622,-61,-61,-59,-435,-427,-231,-148,-427,-419,-29952,-29951,-29954,-29953,-11803,-9830,-29975,-29977,-29978,-29979,-29979,-29980,-29982,-29982,-29989,-29990,-29990,-29991,-29993,-29994,-29994,-29995]} 1. e4 {[%emt 0:00:05]} d5 {[%emt 0:00:06]} 2. exd5 {[%emt 0:00:03]} Qxd5 {[%emt 0:00:05]} 3. Nc3 {[%emt 0:00:05]} Qd8 {[%emt 0:00:03]} 4. d4 {[%emt 0:00:40]} c6 {[%emt 0:00:06]} 5. Nf3 {[%emt 0:00:18]} Bg4 {[%emt 0:00:23]} 6. Be2 {[%emt 0:01:01] B01: Scandinavian Defence.} Bxf3 {[%emt 0:01:28]} 7. Bxf3 {[%emt 0:00:45]} e6 {[%emt 0:00:07] Prevents d5.} 8. Be3 {[%emt 0:08:35] White is slightly better.} Nf6 {[%emt 0:00:13] [#]} 9. Qd3 $146 {[%emt 0:05:08]} ({Predecessor:} 9. O-O Be7 10. Ne2 Nbd7 11. Bf4 Nb6 12. b3 a5 13. c4 O-O 14. Qc2 Re8 15. Rfd1 {½-½ (33) Mameli,G (2080)-Vezzani,S (2127) Verona 2019}) 9... Nbd7 {[%emt 0:01:46][%cal Bb8d7,Bd7b6,Bb6d5,Bd5f6][%mdl 32]} 10. O-O-O {[%emt 0:06:52]} Bb4 {[%emt 0:00:45]} 11. Kb1 {[%emt 0:01:37]} Bxc3 {[%emt 0:00:16]} 12. Qxc3 {[%emt 0:01:50]} Nd5 {[%emt 0:00:10]} 13. Qb3 {[%emt 0:03:08]} Nxe3 {[%emt 0:00:14]} 14. Qxe3 {[%emt 0:07:12]} Nb6 {[%emt 0:03:04] Inhibits d5.} 15. h4 {[%emt 0:08:24]} h6 {[%emt 0:01:42]} 16. Rh3 {[%emt 0:14:34]} Qf6 {[%emt 0:01:51]} 17. Be2 {[%emt 0:09:27]} Nd5 {[%emt 0:02:08]} 18. Qe4 {[%emt 0:05:23]} Qf4 {[%emt 0:00:49]} 19. Bf3 {[%emt 0:03:24]} Qxe4 {[%emt 0:01:01]} 20. Bxe4 {[%emt 0:00:08]} Nf6 {[%emt 0:00:43]} 21. Bf3 {[%emt 0:02:32]} Ke7 {[%emt 0:00:42]} 22. Rhh1 {[%emt 0:00:28]} Rhd8 {[%emt 0:07:13]} 23. c3 {[%emt 0:00:19]} a5 {[%emt 0:00:25]} 24. Kc2 {[%emt 0:02:13]} Rac8 {[%emt 0:00:21]} 25. Rhe1 {[%emt 0:01:05]} b5 {[%emt 0:00:47]} 26. a4 {[%emt 0:01:33]} Nd5 {[%emt 0:03:50]} 27. axb5 {[%emt 0:05:54]} cxb5 {[%emt 0:00:13]} 28. Ra1 {[%emt 0:00:24]} a4 {[%emt 0:01:31]} 29. Re5 {[%emt 0:04:43]} Kf6 {[%emt 0:04:08]} 30. Bxd5 {[%emt 0:01:46]} (30. h5 {is more complex.} Nb4+ 31. Kb1 Nd5 32. g3) 30... Rxd5 {[%emt 0:00:40]} 31. Rxd5 exd5 $11 {[%emt 0:00:01][%mdl 4096] Endgame KR-KR} 32. Re1 {[%emt 0:01:40]} b4 {[%emt 0:00:47]} 33. Re3 {[%emt 0:02:22]} g6 {[%emt 0:03:42]} 34. Kb1 {[%emt 0:01:07]} b3 {[%emt 0:12:52]} 35. Kc1 $1 {[%emt 0:00:03]} Rc6 {[%emt 0:00:17]} 36. Kd2 {[%emt 0:00:32]} Ra6 {[%emt 0:11:44]} (36... Re6 $1 $17 {[%cal Re6e3]}) 37. Re1 {[%emt 0:00:47]} a3 {[%emt 0:00:24]} 38. bxa3 {[%emt 0:00:13]} Rxa3 {[%emt 0:00:01] Threatens to win with ...Ra2+.} 39. Rb1 {[%emt 0:00:12]} Kf5 {[%emt 0:00:47]} 40. Kd3 {[%emt 0:02:37]} Kg4 {[%emt 0:00:28]} 41. Ke3 {[%emt 0:09:47]} (41. Rb2 $11) 41... f5 {[%emt 0:01:22]} (41... Kxh4 {is a self mate.} 42. Kf4) 42. Rb2 {[%emt 0:02:44]} f4+ {[%emt 0:00:48]} (42... Kxh4 $17 43. Kd3 Ra2 44. Rxb3 Rxf2) 43. Kd3 $19 {[%emt 0:00:15]} Kxh4 {[%emt 0:00:51]} ({Black should try} 43... Ra2 $17 44. Rxb3 Rxf2) 44. c4 $11 {[%emt 0:00:28]} Ra2 {[%emt 0:08:36]} 45. g3+ $2 {[%emt 0:02:32][%mdl 8192]} (45. Rxb3 $11 dxc4+ 46. Kxc4) 45... Kg4 $19 {[%emt 0:01:08]} 46. Rxb3 {[%emt 0:00:55]} dxc4+ {[%emt 0:03:30]} ({Stronger than} 46... Rxf2 47. gxf4 Rf3+ 48. Kc2 Rxf4 49. Rb6 $19) 47. Kxc4 {[%emt 0:00:07] [#]} Rxf2 $2 {[%emt 0:00:07]} (47... f3 $1 $19 48. Kd3 Rxf2) 48. gxf4 $15 {[%emt 0:00:29]} Kxf4 {[%emt 0:01:02]} 49. Rd3 $2 {[%emt 0:00:45][%mdl 8192]} (49. Rh3 $15) 49... Ke4 $19 {[%emt 0:01:00]} 50. Rh3 {[%emt 0:01:22]} h5 {[%emt 0:02:40][%cal Bh6h5,Bh5h4,Bh4h3,Bh3h2][%mdl 32] aiming for ...Rc2+.} 51. Rg3 $2 {[%emt 0:00:47][%mdl 8192]} (51. Rh4+ $17 Rf4 52. Rh1) 51... Kf5 {[%emt 0:00:42] ...h4 is the strong threat.} 52. d5 {[%emt 0:00:33] [#]} (52. Rd3 $19 Rc2+ 53. Kb5) 52... Rd2 $1 {[%emt 0:01:10]} 53. Rf3+ {[%emt 0:00:27]} Kg4 {[%emt 0:00:46]} 54. Rf6 {[%emt 0:01:36]} g5 {[%emt 0:00:08] ( -> ...h4)} 55. d6 {[%emt 0:00:23]} h4 {[%emt 0:00:02] Black mates.} 56. Re6 {[%emt 0:00:15]} h3 {[%emt 0:00:38]} 57. Re4+ {[%emt 0:00:04]} Kf5 {[%emt 0:00:17]} 58. Re3 {[%emt 0:00:52]} g4 {[%emt 0:00:15]} 59. Kc5 {[%emt 0:00:59]} h2 {[%emt 0:00:21]} 60. Re1 {[%emt 0:00:06]} g3 {[%emt 0:00:09]} 61. Rh1 {[%emt 0:00:15]} g2 {[%emt 0:00:13]} 62. Rxh2 {[%emt 0:00:13]} g1=Q+ {[%emt 0:00:05] Weighted Error Value: White=0.62/Black=0.20 (precise)} 0-1

[Event "DPEM German Cup 2022"]
[Site "Magdeburg"]
[Date "2022.08.18"]
[Round "2.4"]
[White "Brunke, Pascal"]
[Black "Heinrich, Julius Tobias"]
[Result "0-1"]
[ECO "C06"]
[WhiteElo "2022"]
[BlackElo "2074"]
[Annotator "NA RC"]
[PlyCount "105"]
[EventDate "2022.08.10"]
[EventType "k.o."]
[EventCountry "GER"]
[SourceTitle "playchess.com"]
[Source "ChessBase"]
[SourceQuality "1"]
[TimeControl "40/5400+30:900+30"]

1. e4 {[%emt 0:00:03]} e6 {[%emt 0:00:06]} 2. d4 {[%emt 0:00:04]} d5 {[%emt 0:00:04]} 3. Nd2 {[%emt 0:00:21]} Nf6 {[%emt 0:00:07]} 4. e5 {[%emt 0:00:05]} Nfd7 {[%emt 0:00:03]} 5. Bd3 {[%emt 0:00:05]} c5 {[%emt 0:00:04]} 6. c3 {[%emt 0:00:04]} Nc6 {[%emt 0:00:04]} 7. Ne2 {[%emt 0:00:05]} Qb6 {[%emt 0:00:06]} 8. Nf3 {[%emt 0:00:13]} Be7 {[%emt 0:00:06]} 9. O-O {[%emt 0:00:06]} O-O {[%emt 0:00:36]} 10. Nf4 {[%emt 0:00:13]} Nd8 {[%emt 0:05:25]} 11. Re1 {[%emt 0:08:29]} f6 {[%emt 0:05:32]} 12. Qc2 {[%emt 0:08:24]} f5 {[%emt 0:00:28]} 13. dxc5 {[%emt 0:00:15]} Nxc5 {[%emt 0:01:17]} 14. Bf1 {[%emt 0:07:06]} Bd7 {[%emt 0:11:08]} 15. Be3 {[%emt 0:05:15]} Qc7 {[%emt 0:01:52]} 16. Bxc5 {[%emt 0:01:18]} Qxc5 {[%emt 0:00:17]} 17. Nd4 {[%emt 0:01:36]} Rc8 {[%emt 0:01:40]} 18. Qb3 {[%emt 0:01:30]} a6 {[%emt 0:03:08]} 19. Rad1 {[%emt 0:10:03]} g5 {[%emt 0:05:44]} 20. Nd3 {[%emt 0:02:05]} Qa5 {[%emt 0:00:14]} 21. Qc2 {[%emt 0:03:15]} Qxa2 {[%emt 0:09:00]} 22. Qd2 {[%emt 0:14:07]} Qa5 {[%emt 0:04:07]} 23. Be2 {[%emt 0:05:02]} b5 {[%emt 0:17:02]} 24. h4 {[%emt 0:03:57]} gxh4 {[%emt 0:13:54]} 25. Qf4 {[%emt 0:00:56]} Nf7 {[%emt 0:03:26]} 26. Bh5 {[%emt 0:00:21]} Ng5 {[%emt 0:02:25]} 27. Kh1 {[%emt 0:09:06]} Ne4 {[%emt 0:04:47]} 28. Kg1 {[%emt 0:02:53]} Bg5 {[%emt 0:02:46]} 29. Qh2 {[%emt 0:01:22]} Qd8 {[%emt 0:06:28]} 30. Ra1 {[%emt 0:01:10]} a5 {[%emt 0:00:50]} 31. Nf4 {[%emt 0:01:24]} Qb6 {[%emt 0:00:17]} 32. Nfe2 {[%emt 0:07:32]} b4 {[%emt 0:00:51]} 33. cxb4 {[%emt 0:00:36]} axb4 {[%emt 0:00:10]} 34. Rad1 {[%emt 0:01:56]} b3 {[%emt 0:01:14]} 35. Qh3 {[%emt 0:00:39]} Ba4 {[%emt 0:01:12]} 36. Ra1 {[%emt 0:01:22]} Rc4 {[%emt 0:00:36]} 37. Red1 {[%emt 0:01:28]} Rfc8 {[%emt 0:00:49]} 38. Qf3 {[%emt 0:01:45]} Nd2 {[%emt 0:00:29]} 39. Qd3 {[%emt 0:01:06]} Ne4 {[%emt 0:00:10]} 40. Bf3 {[%emt 0:02:39]} Nc5 {[%emt 0:00:35]} 41. Qb1 {[%emt 0:01:01]} Rc2 {[%emt 0:01:51]} 42. Nc3 {[%emt 0:02:44]} Qb4 {[%emt 0:05:06]} 43. Nxe6 {[%emt 0:06:50]} Nxe6 {[%emt 0:04:07]} 44. Rxa4 {[%emt 0:00:14]} Qb6 {[%emt 0:00:54]} 45. Rf1 {[%emt 0:00:25]} d4 {[%emt 0:01:42]} 46. Nd1 {[%emt 0:00:42]} Qb5 {[%emt 0:02:03]} 47. Qa1 {[%emt 0:00:27]} h3 {[%emt 0:01:09]} 48. Ra5 {[%emt 0:01:11]} h2+ {[%emt 0:00:27]} 49. Kxh2 {[%emt 0:00:21]} Qxf1 {[%emt 0:00:20]} 50. Bd5 {[%emt 0:00:29]} Bf4+ {[%emt 0:01:04]} 51. g3 {[%emt 0:00:10]} Rxf2+ {[%emt 0:00:30]} 52. Nxf2 {[%emt 0:00:04]} Qxf2+ {[%emt 0:00:07]} 53. Kh1 {[%emt 0:00:13]} 0-1

[Event "DPEM German Cup 2022"]
[Site "Magdeburg"]
[Date "2022.08.18"]
[Round "2.5"]
[White "Schroeder, Christoph"]
[Black "Ehmann, Thilo"]
[Result "0-1"]
[ECO "B94"]
[WhiteElo "2141"]
[BlackElo "2391"]
[Annotator "TA"]
[PlyCount "146"]
[EventDate "2022.08.10"]
[EventType "k.o."]
[EventCountry "GER"]
[SourceTitle "playchess.com"]
[Source "ChessBase"]
[SourceQuality "1"]
[TimeControl "40/5400+30:900+30"]

{[%evp 11,146,12,21,20,36,38,18,29,25,25,29,18,54,44,106,87,101,95,117,73,49,52,40,37,35,27,15,-5,-14,-20,65,-14,-23,-17,12,0,0,0,0,-4,0,0,51,46,57,0,0,-89,-103,-93,-84,-86,-88,-88,-85,-351,-308,-367,-272,-630,-465,-430,-460,-466,-465,-397,-468,-474,-474,-469,-461,-453,-452,-425,-420,-557,-557,-537,-507,-490,-425,-420,-328,-387,-385,-1579,-1591,-2095,-2021,-1877,-1738,-29975,-1632,-1467,-599,-1278,-1214,-1063,-681,-877,-884,-5937,-1576,-29970,-29967,-29969,-29974,-29973,-29975,-29977,-29979,-29979,-29980,-29984,-29983,-29986,-29987,-29987,-29988,-29988,-29987,-29987,-29988,-29987,-29987,-29988,-29988,-29991,-29992,-29992,-29993,-29994,-29994,-29994,-29995,-29998,-29997]} 1. e4 {[%emt 0:00:29]} c5 {[%emt 0:24:23]} 2. Nf3 {[%emt 0:00:42]} d6 {[%emt 0:00:06]} 3. d4 {[%emt 0:00:34]} cxd4 {[%emt 0:00:02]} 4. Nxd4 {[%emt 0:00:06]} Nf6 {[%emt 0:00:04]} 5. Nc3 {[%emt 0:00:08]} a6 {[%emt 0:00:03]} 6. Bg5 {[%emt 0:02:46]} Nbd7 {[%emt 0:01:28]} 7. Qe2 {[%emt 0:01:03] 7.Qe2 is a critical line. B94: Sicilian Najdorf: 6 Bg5 Nbd7.} h6 {[%emt 0:00:57]} 8. Bh4 {[%emt 0:00:10]} g6 {[%emt 0:00:53]} 9. f4 {[%emt 0:02:27] The position is equal.} e5 {[%emt 0:01:09]} 10. fxe5 {[%emt 0:01:54]} dxe5 {[%emt 0:00:26] [#] Strongly threatening ...g5.} 11. O-O-O $1 {[%emt 0:01:52]} Be7 {[%emt 0:07:17]} ({Weaker is} 11... exd4 12. e5 Bc5 13. exf6+ Kf8 14. Ne4 $18) (11... Qc7 12. Nb3) 12. Nb3 {[%emt 0:11:50]} Qc7 {[%emt 0:02:14]} ({Black should try} 12... b5 $14) 13. Qf3 $16 {[%emt 0:12:11][%cal Od1d7] Black must now prevent Rxd7!} g5 {[%emt 0:04:09]} 14. Bf2 {[%emt 0:03:36] [#]} Nb6 $146 {[%emt 0:09:09]} ({Predecessor:} 14... g4 15. Qd3 Nb6 16. Nd5 Nbxd5 17. exd5 Bd6 18. Bh4 Nh5 19. g3 Bd7 20. h3 Rc8 21. hxg4 Bxg4 {0-1 (42) Stocko,J (2334)-Grinberg,E (2451) Budapest 2017}) 15. Bxb6 {[%emt 0:05:40]} Qxb6 {[%emt 0:03:19]} 16. Nd5 {[%emt 0:00:16]} Nxd5 {[%emt 0:01:13]} 17. exd5 {[%emt 0:03:00][%cal Od5d6]} ({Much weaker is} 17. Rxd5 Be6 18. Rxe5 Qc7 19. Rxe6 fxe6 20. Qh5+ Kd7 $17) 17... Qg6 {[%emt 0:03:47]} 18. d6 {[%emt 0:07:39]} Bxd6 {[%emt 0:02:31][%cal Be7d6,Bd6c7,Bc7d8][%mdl 32]} 19. Qd5 {[%emt 0:01:50]} Bc7 {[%emt 0:01:26]} 20. Nc5 {[%emt 0:03:46]} Qc6 {[%emt 0:04:01] [#]} (20... Ra7 $11) 21. Bc4 {[%emt 0:04:22]} (21. Nxa6 $1 $14 Qb6 (21... Ke7 22. Nb4) 22. Nxc7+ Qxc7 23. Re1) 21... Qxd5 $11 {[%emt 0:02:57]} 22. Bxd5 {[%emt 0:00:15]} O-O {[%emt 0:01:17]} 23. h4 {[%emt 0:08:28]} gxh4 {[%emt 0:07:52]} 24. Rxh4 {[%emt 0:00:27]} Bd8 {[%emt 0:00:13]} 25. Re4 {[%emt 0:02:22]} Bg5+ {[%emt 0:01:24]} 26. Kb1 {[%emt 0:00:04]} Re8 {[%emt 0:00:48]} ({Black should play} 26... Ra7 $11) 27. Nxb7 $14 {[%emt 0:03:00] Threatens to win with Nd6.} Bf5 {[%emt 0:02:08]} 28. Rc4 {[%emt 0:06:02]} (28. Ree1 $14 Rac8 29. Bb3) 28... Be6 $11 {[%emt 0:05:52] This bishop pair is nice.} 29. Nc5 {[%emt 0:03:47]} (29. Re4 $11 {remains equal.}) 29... Bxd5 $17 {[%emt 0:01:11]} 30. Rxd5 {[%emt 0:00:05]} Rad8 $36 {[%emt 0:00:16][%mdl 2048] Black is really pushing.} 31. Rxd8 {[%emt 0:01:32]} Rxd8 {[%emt 0:00:04][%cal Rd8d1][%mdl 4096] Endgame KRB-KRN} 32. a4 {[%emt 0:02:15]} f5 {[%emt 0:00:43][%cal Bf7f5,Bf5f4,Bf4f3][%mdl 32] Against Re4} 33. g4 $2 {[%emt 0:04:32][%mdl 8192] This move loses the game for White.} (33. b4 $17 {might work better.}) 33... f4 {[%emt 0:00:52]} 34. Ne4 {[%emt 0:04:49]} f3 {[%emt 0:00:44]} 35. Rc5 $2 {[%emt 0:01:39]} (35. b4) 35... Bf4 {[%emt 0:03:59]} 36. Rc3 {[%emt 0:00:47]} Rd4 {[%emt 0:00:15]} 37. Nf2 {[%emt 0:00:21]} e4 {[%emt 0:00:23]} 38. Nxe4 {[%emt 0:00:49]} Rxe4 {[%emt 0:00:05]} 39. Rxf3 {[%emt 0:00:07]} Rxa4 $19 {[%emt 0:00:13] KRB-KR} 40. c3 {[%emt 0:01:50]} Re4 {[%emt 0:00:28]} 41. Kc2 {[%emt 0:02:40]} Bg5 {[%emt 0:00:33]} 42. Rg3 {[%emt 0:00:28]} Re2+ {[%emt 0:00:06]} 43. Kb1 {[%emt 0:00:28]} Kf7 {[%emt 0:00:33]} 44. Rf3+ {[%emt 0:04:24]} Ke7 {[%emt 0:01:46]} 45. Rf5 {[%emt 0:00:10]} Kd7 {[%emt 0:03:44]} 46. Ra5 {[%emt 0:00:16]} Re6 {[%emt 0:00:08]} 47. b4 {[%emt 0:02:19]} Kc7 {[%emt 0:00:40]} 48. b5 $2 {[%emt 0:01:05]} (48. Kc2) 48... axb5 {[%emt 0:01:46]} 49. Rxb5 {[%emt 0:00:03]} Kc6 {[%emt 0:02:25]} 50. Rb4 {[%emt 0:04:11]} Re2 {[%emt 0:02:05]} 51. Rb2 {[%emt 0:00:40]} Re1+ {[%emt 0:00:22]} (51... Rxb2+ $142 52. Kxb2 Kd5 53. Kb1 Ke4 54. Kb2 Kf3 55. Kc2 Be3 56. Kd3 Bf4 57. Kd4 Kxg4 58. c4 h5 59. Kd3 Kf3 60. Kc3 h4 61. c5 h3 62. c6 Bc7 63. Kd3 h2 64. Kc3 h1=Q 65. Kd4 Qb1 66. Kc4 Ke4 67. Kc5 Kd3 68. Kd5 Qb3+ 69. Kc5 Qc4#) 52. Kc2 {[%emt 0:00:08]} Kd5 {[%emt 0:00:31]} (52... Re4 $142 53. Rb4 Re3) 53. Rb4 {[%emt 0:01:02]} Ke5 {[%emt 0:04:24]} 54. Rd4 {[%emt 0:01:43]} Bf4 {[%emt 0:00:31] And now ...Rg1 would win.} 55. Kd3 {[%emt 0:02:07]} Re3+ {[%emt 0:01:09]} 56. Kd2 {[%emt 0:00:11]} Rg3+ {[%emt 0:00:20]} 57. Ke2 {[%emt 0:00:07]} Rxg4 {[%emt 0:00:08] Black mates.} 58. Rd8 {[%emt 0:00:21]} Rg2+ {[%emt 0:00:38]} 59. Kf3 {[%emt 0:00:11]} Rg3+ {[%emt 0:00:09]} 60. Kf2 {[%emt 0:00:02]} Rxc3 {[%emt 0:00:11]} 61. Re8+ {[%emt 0:01:12]} Kf5 {[%emt 0:00:05]} 62. Re2 {[%emt 0:00:26]} Kg4 {[%emt 0:00:19]} 63. Kg2 {[%emt 0:00:27]} h5 {[%emt 0:00:28][%cal Bh6h5,Bh5h4,Bh4h3][%mdl 32]} 64. Re1 {[%emt 0:00:58]} Rc2+ {[%emt 0:02:30]} 65. Kh1 {[%emt 0:00:08]} Kh3 {[%emt 0:01:30]} 66. Kg1 {[%emt 0:01:13]} Kg3 {[%emt 0:01:21]} 67. Kh1 {[%emt 0:00:34]} Rh2+ {[%emt 0:02:00]} 68. Kg1 {[%emt 0:00:03]} h4 {[%emt 0:00:18]} 69. Re4 {[%emt 0:01:01]} Ra2 {[%emt 0:00:44]} 70. Re1 {[%emt 0:00:04]} Bd2 {[%emt 0:00:21]} 71. Rd1 {[%emt 0:00:58]} Be3+ {[%emt 0:00:19]} 72. Kf1 {[%emt 0:00:04]} Kf3 {[%emt 0:00:37]} 73. Rb1 {[%emt 0:01:00]} h3 {[%emt 0:00:11] Weighted Error Value: White=0.72/Black=0.36} 0-1